[Event "FIDE WCCC U8 2018"]
[Site "Santiago de Compostela"]
[Date "2018.11.10"]
[Round "6"]
[White "Chennareddy, Yuvraj"]
[Black "Usov, Aleksandr E."]
[Result "1-0"]
[ECO "B11"]
[WhiteElo "1497"]
[BlackElo "1640"]
[Annotator "NA RC"]
[PlyCount "209"]
[EventDate "2018.11.04"]
[EventType "swiss"]
[EventCountry "ESP"]
[SourceTitle "playchess.com"]
[Source "ChessBase"]
[SourceQuality "1"]
[TimeControl "40/5400+30:1800+30"]

1. e4 {[%emt 0:00:00]} c6 {[%emt 0:00:00]} 2. Nc3 {[%emt 0:00:00]} d5 {[%emt 0:00:00]} 3. Nf3 {[%emt 0:00:02]} Bg4 {[%emt 0:00:00]} 4. h3 {[%emt 0:00:08]} Bxf3 {[%emt 0:00:35]} 5. Qxf3 {[%emt 0:00:09]} e6 {[%emt 0:00:12]} 6. d3 {[%emt 0:00:06]} Nd7 {[%emt 0:00:50]} 7. Bd2 {[%emt 0:00:46]} Bd6 {[%emt 0:01:16]} 8. O-O-O {[%emt 0:05:38]} h5 {[%emt 0:18:19]} 9. d4 {[%emt 0:11:39]} Bb4 {[%emt 0:18:34]} 10. Qg3 {[%emt 0:03:23]} Bxc3 {[%emt 0:07:19]} 11. Bxc3 {[%emt 0:00:49]} g6 {[%emt 0:05:57]} 12. exd5 {[%emt 0:00:29]} cxd5 {[%emt 0:00:35]} 13. Bb5 {[%emt 0:01:42]} Ngf6 {[%emt 0:12:19]} 14. f3 {[%emt 0:01:17]} a6 {[%emt 0:00:28]} 15. Bd3 {[%emt 0:00:26]} Qb8 {[%emt 0:01:15]} 16. Qg5 {[%emt 0:01:02]} Qc7 {[%emt 0:01:13]} 17. Be1 {[%emt 0:07:55]} Nh7 {[%emt 0:10:10]} 18. Qh4 {[%emt 0:04:55]} Qd8 {[%emt 0:01:14]} 19. Qxd8+ {[%emt 0:05:47]} Rxd8 {[%emt 0:00:22]} 20. Ba5 {[%emt 0:01:03]} Rc8 {[%emt 0:00:31]} 21. Kb1 {[%emt 0:00:42]} Nhf6 {[%emt 0:01:04]} 22. a4 {[%emt 0:01:30]} Nb8 {[%emt 0:00:48]} 23. b3 {[%emt 0:03:35]} Nc6 {[%emt 0:00:20]} 24. Bc3 {[%emt 0:00:08]} Ne7 {[%emt 0:00:09]} 25. Bd2 {[%emt 0:03:26]} Nf5 {[%emt 0:01:13]} 26. Bxf5 {[%emt 0:00:10]} gxf5 {[%emt 0:00:12]} 27. Bg5 {[%emt 0:01:55]} Nd7 {[%emt 0:00:33]} 28. Rde1 {[%emt 0:02:01]} Rg8 {[%emt 0:01:04]} 29. f4 {[%emt 0:05:03]} Rc6 {[%emt 0:01:35]} 30. Re2 {[%emt 0:04:33]} Nb6 {[%emt 0:03:12]} 31. Kb2 {[%emt 0:01:30]} Nc8 {[%emt 0:00:19]} 32. Rd1 {[%emt 0:10:47]} Nd6 {[%emt 0:01:25]} 33. Rd3 {[%emt 0:00:15]} Ne4 {[%emt 0:00:40]} 34. Bh4 {[%emt 0:00:09]} Kd7 {[%emt 0:00:19]} 35. Be1 {[%emt 0:03:59]} Rcc8 {[%emt 0:00:33]} 36. g3 Rg6 {[%emt 0:01:47]} 37. Ree3 {[%emt 0:01:49]} h4 {[%emt 0:03:18]} 38. gxh4 {[%emt 0:00:46]} Rg2 {[%emt 0:00:24]} 39. Bc3 {[%emt 0:00:57]} b5 {[%emt 0:00:31]} 40. axb5 {[%emt 0:00:00]} axb5 {[%emt 0:00:00]} 41. b4 {[%emt 0:01:16]} Rg1 {[%emt 0:01:41]} 42. Re1 {[%emt 0:02:05]} Rg2 {[%emt 0:00:28]} 43. Ree3 {[%emt 0:01:15]} Nd6 {[%emt 0:00:18]} 44. Rg3 {[%emt 0:00:32]} Re2 {[%emt 0:01:41]} 45. h5 {[%emt 0:06:39]} Rh8 {[%emt 0:02:29]} 46. Rd1 {[%emt 0:05:03]} Nc4+ {[%emt 0:01:55]} 47. Kb3 {[%emt 0:00:10]} Ra8 {[%emt 0:00:42]} 48. Ra1 {[%emt 0:00:12]} Nd2+ {[%emt 0:03:55]} 49. Kb2 {[%emt 0:01:01]} Nc4+ {[%emt 0:00:13]} 50. Kb1 {[%emt 0:03:39]} Na3+ {[%emt 0:01:28]} 51. Kc1 {[%emt 0:01:15]} Rxc2+ {[%emt 0:00:32]} 52. Kd1 {[%emt 0:00:08]} Rf2 {[%emt 0:05:20]} 53. Be1 {[%emt 0:00:50]} Rxf4 {[%emt 0:00:11]} 54. Raxa3 {[%emt 0:00:33]} Rxd4+ {[%emt 0:00:16]} 55. Ke2 {[%emt 0:02:46]} Re4+ {[%emt 0:00:27]} 56. Kf1 {[%emt 0:01:09]} Rc8 {[%emt 0:00:42]} 57. Rac3 {[%emt 0:02:26]} Rh8 {[%emt 0:02:37]} 58. Rg7 {[%emt 0:07:37]} Rxh5 {[%emt 0:00:21]} 59. Rxf7+ {[%emt 0:00:07]} Kd6 {[%emt 0:00:14]} 60. Bg3+ {[%emt 0:01:43]} e5 {[%emt 0:00:53]} 61. Rf6+ {[%emt 0:04:19]} Ke7 {[%emt 0:00:43]} 62. Ra6 {[%emt 0:00:47]} Rc4 {[%emt 0:00:52]} 63. Bxe5 {[%emt 0:01:52]} Rxc3 {[%emt 0:00:14]} 64. Bxc3 {[%emt 0:00:08]} Rxh3 {[%emt 0:00:08]} 65. Bd4 {[%emt 0:00:29]} f4 {[%emt 0:00:49]} 66. Rf6 {[%emt 0:01:10]} f3 {[%emt 0:01:18]} 67. Rf4 {[%emt 0:00:45]} Ke6 {[%emt 0:01:29]} 68. Kf2 {[%emt 0:01:15]} Rh2+ {[%emt 0:00:52]} 69. Kxf3 {[%emt 0:00:05]} Rh3+ {[%emt 0:00:41]} 70. Kg4 {[%emt 0:00:17]} Rb3 {[%emt 0:00:12]} 71. Bc5 {[%emt 0:03:19]} Ke5 {[%emt 0:00:21]} 72. Rf3 {[%emt 0:00:23]} Rb1 {[%emt 0:00:23]} 73. Re3+ {[%emt 0:00:10]} Kf6 {[%emt 0:00:06]} 74. Kf3 {[%emt 0:01:42]} Kf5 {[%emt 0:00:27]} 75. Ke2 {[%emt 0:00:26]} Ra1 {[%emt 0:00:25]} 76. Kd2 {[%emt 0:00:20]} Ra2+ {[%emt 0:00:22]} 77. Kd3 {[%emt 0:00:29]} Ra1 {[%emt 0:00:21]} 78. Kd4 {[%emt 0:00:10]} Rd1+ {[%emt 0:00:28]} 79. Rd3 {[%emt 0:00:13]} Rh1 {[%emt 0:00:18]} 80. Kxd5 {[%emt 0:00:07]} Rh8 {[%emt 0:00:16]} 81. Kc6 {[%emt 0:00:14]} Rb8 {[%emt 0:00:07]} 82. Rd7 {[%emt 0:00:10]} Ke6 {[%emt 0:00:15]} 83. Re7+ {[%emt 0:00:11]} Kf6 {[%emt 0:00:09]} 84. Rb7 {[%emt 0:00:07]} Rc8+ {[%emt 0:00:16]} 85. Kxb5 {[%emt 0:00:09]} Ke6 {[%emt 0:00:06]} 86. Rb6+ {[%emt 0:00:23]} Ke5 {[%emt 0:00:19]} 87. Rd6 {[%emt 0:00:28]} Rb8+ {[%emt 0:00:08]} 88. Kc4 {[%emt 0:00:08]} Rg8 {[%emt 0:00:15]} 89. b5 {[%emt 0:00:18]} Rg4+ {[%emt 0:00:12]} 90. Rd4 {[%emt 0:00:09]} Rg2 {[%emt 0:00:16]} 91. b6 {[%emt 0:00:20]} Rc2+ {[%emt 0:00:07]} 92. Kb5 {[%emt 0:00:12]} Rb2+ {[%emt 0:00:14]} 93. Kc6 {[%emt 0:00:21]} Rxb6+ {[%emt 0:00:10]} 94. Kxb6 {[%emt 0:00:25]} Ke6 {[%emt 0:00:09]} 95. Kc6 {[%emt 0:00:08]} Ke5 {[%emt 0:00:05]} 96. Bb6 {[%emt 0:00:07]} Ke6 {[%emt 0:00:06]} 97. Re4+ {[%emt 0:00:05]} Kf5 {[%emt 0:00:06]} 98. Kd5 {[%emt 0:00:07]} Kf6 {[%emt 0:00:10]} 99. Bd8+ {[%emt 0:00:15]} Kf5 {[%emt 0:00:09]} 100. Be7 {[%emt 0:00:08]} Kg6 {[%emt 0:00:08]} 101. Ke6 {[%emt 0:00:06]} Kg7 {[%emt 0:00:13]} 102. Rg4+ {[%emt 0:00:14]} Kh6 {[%emt 0:00:14]} 103. Kf5 {[%emt 0:00:17]} Kh7 {[%emt 0:00:09]} 104. Bf6 {[%emt 0:00:14]} Kh6 {[%emt 0:00:06]} 105. Rh4# {[%emt 0:00:07]} 1-0

[Event "FIDE WCCC U8 2018"]
[Site "Santiago de Compostela"]
[Date "2018.11.10"]
[Round "6"]
[White "Chen, Zhiyuan"]
[Black "Udipi, Kala Kishan"]
[Result "1/2-1/2"]
[ECO "A07"]
[WhiteElo "1459"]
[BlackElo "1653"]
[Annotator "NA RC"]
[PlyCount "133"]
[EventDate "2018.11.04"]
[EventType "swiss"]
[EventCountry "ESP"]
[SourceTitle "playchess.com"]
[Source "ChessBase"]
[SourceQuality "1"]
[TimeControl "40/5400+30:1800+30"]

1. Nf3 {[%emt 0:00:00]} Nf6 {[%emt 0:00:00]} 2. g3 {[%emt 0:00:00]} c6 {[%emt 0:00:00]} 3. Bg2 {[%emt 0:00:00]} d5 {[%emt 0:00:00]} 4. O-O {[%emt 0:00:00]} Bg4 {[%emt 0:00:00]} 5. d3 {[%emt 0:00:08]} Nbd7 {[%emt 0:01:13]} 6. h3 {[%emt 0:00:08]} Bh5 {[%emt 0:00:11]} 7. Qe1 {[%emt 0:00:06]} e5 {[%emt 0:00:53]} 8. e4 {[%emt 0:00:16]} dxe4 {[%emt 0:00:24]} 9. dxe4 {[%emt 0:00:13]} Be7 {[%emt 0:01:11]} 10. Nh4 {[%emt 0:00:12]} Bg6 {[%emt 0:02:53]} 11. Nxg6 {[%emt 0:03:44]} hxg6 {[%emt 0:00:40]} 12. b3 {[%emt 0:01:30]} a5 {[%emt 0:01:25]} 13. Bb2 {[%emt 0:05:55]} Qb6 {[%emt 0:01:10]} 14. Nd2 {[%emt 0:02:47]} Qc7 {[%emt 0:09:26]} 15. Rd1 {[%emt 0:05:01]} a4 {[%emt 0:02:04]} 16. Qe2 {[%emt 0:00:59]} axb3 {[%emt 0:03:01]} 17. axb3 {[%emt 0:02:37]} O-O {[%emt 0:02:36]} 18. Nf3 {[%emt 0:05:56]} Ra2 {[%emt 0:02:37]} 19. Bc3 {[%emt 0:01:32]} b5 {[%emt 0:00:41]} 20. Ra1 {[%emt 0:01:24]} Rfa8 {[%emt 0:01:20]} 21. Rxa2 {[%emt 0:00:20]} Rxa2 {[%emt 0:00:14]} 22. Ra1 {[%emt 0:00:12]} Rxa1+ {[%emt 0:00:38]} 23. Bxa1 {[%emt 0:00:05]} Qa7 {[%emt 0:00:38]} 24. Bc3 {[%emt 0:04:23]} Qc5 {[%emt 0:04:59]} 25. Bb2 {[%emt 0:06:26]} Bd8 {[%emt 0:01:46]} 26. Ne1 {[%emt 0:07:29]} Bc7 {[%emt 0:02:01]} 27. Nd3 {[%emt 0:03:05]} Qa7 {[%emt 0:01:59]} 28. Nb4 {[%emt 0:02:29]} c5 {[%emt 0:01:30]} 29. Nd5 {[%emt 0:03:27]} Nxd5 {[%emt 0:02:30]} 30. exd5 {[%emt 0:01:09]} Qa5 {[%emt 0:04:30]} 31. Qd3 {[%emt 0:03:33]} Bd6 {[%emt 0:01:10]} 32. Bf1 {[%emt 0:01:33]} b4 {[%emt 0:01:50]} 33. Qc4 {[%emt 0:02:06]} Nb6 {[%emt 0:02:29]} 34. Qe2 {[%emt 0:00:10]} Nd7 {[%emt 0:04:48]} 35. Qb5 {[%emt 0:05:45]} Qxb5 {[%emt 0:00:53]} 36. Bxb5 Nb6 {[%emt 0:01:36]} 37. Bc4 {[%emt 0:01:50]} Kf8 {[%emt 0:04:29]} 38. Kg2 {[%emt 0:01:01]} Ke7 {[%emt 0:00:35]} 39. g4 {[%emt 0:02:46]} Bc7 {[%emt 0:08:50]} 40. Kf3 {[%emt 0:00:00]} f5 {[%emt 0:00:00]} 41. Ke2 {[%emt 0:03:18]} fxg4 {[%emt 0:03:57]} 42. hxg4 {[%emt 0:00:07]} Kd6 {[%emt 0:00:05]} 43. f4 {[%emt 0:00:32]} exf4 {[%emt 0:01:31]} 44. Bxg7 {[%emt 0:01:22]} Nxd5 {[%emt 0:00:32]} 45. Bf8+ {[%emt 0:00:11]} Kc6 {[%emt 0:00:30]} 46. Kf3 {[%emt 0:06:00]} Ne3 {[%emt 0:01:46]} 47. Bd3 {[%emt 0:01:12]} Kd5 {[%emt 0:22:08]} 48. Be4+ {[%emt 0:04:53]} Kd4 {[%emt 0:03:23]} 49. Bg7+ {[%emt 0:00:13]} Be5 {[%emt 0:00:17]} 50. Bxe5+ {[%emt 0:00:08]} Kxe5 {[%emt 0:00:09]} 51. Bxg6 {[%emt 0:00:11]} c4 {[%emt 0:04:18]} 52. g5 {[%emt 0:04:15]} cxb3 {[%emt 0:03:14]} 53. cxb3 {[%emt 0:00:09]} Nf1 {[%emt 0:02:53]} 54. Ke2 {[%emt 0:05:54]} Ng3+ {[%emt 0:00:28]} 55. Kd3 {[%emt 0:09:17]} f3 {[%emt 0:01:03]} 56. Ke3 {[%emt 0:00:17]} Nf1+ {[%emt 0:00:06]} 57. Kxf3 {[%emt 0:00:32]} Nd2+ {[%emt 0:00:08]} 58. Kg4 {[%emt 0:00:52]} Nxb3 {[%emt 0:00:24]} 59. Kh5 {[%emt 0:04:46]} Nc5 {[%emt 0:01:36]} 60. Bc2 {[%emt 0:02:46]} b3 {[%emt 0:03:01]} 61. Bxb3 {[%emt 0:01:34]} Nxb3 {[%emt 0:00:14]} 62. g6 {[%emt 0:00:05]} Nc5 {[%emt 0:00:04]} 63. g7 {[%emt 0:00:44]} Ne4 {[%emt 0:00:26]} 64. Kg6 {[%emt 0:00:07]} Nf6 {[%emt 0:00:11]} 65. Kf7 {[%emt 0:00:06]} Kf5 {[%emt 0:00:27]} 66. g8=R {[%emt 0:00:13]} Nxg8 {[%emt 0:00:18]} 67. Kxg8 {[%emt 0:00:04]} 1/2-1/2

[Event "FIDE WCCC U8 2018"]
[Site "Santiago de Compostela"]
[Date "2018.11.10"]
[Round "6"]
[White "Sevig, Mert Can"]
[Black "Lu, Miaoyi"]
[Result "0-1"]
[ECO "B14"]
[WhiteElo "1442"]
[BlackElo "1717"]
[Annotator "NA"]
[PlyCount "58"]
[EventDate "2018.11.04"]
[EventType "swiss"]
[EventCountry "ESP"]
[SourceTitle "playchess.com"]
[Source "ChessBase"]
[SourceQuality "1"]
[TimeControl "40/5400+30:1800+30"]

1. e4 {[%emt 0:00:00]} c6 {[%emt 0:00:00]} 2. d4 {[%emt 0:00:00]} d5 {[%emt 0:00:00]} 3. exd5 {[%emt 0:00:16]} cxd5 {[%emt 0:00:00]} 4. c4 {[%emt 0:00:15]} Nf6 {[%emt 0:00:22]} 5. Nc3 {[%emt 0:01:03]} e6 {[%emt 0:01:00]} 6. Nf3 {[%emt 0:01:08]} Bb4 {[%emt 0:00:13]} 7. Bd2 {[%emt 0:01:49]} O-O {[%emt 0:03:48]} 8. a3 {[%emt 0:02:43]} Be7 {[%emt 0:01:36]} 9. c5 {[%emt 0:01:49]} b6 {[%emt 0:09:37]} 10. b4 {[%emt 0:01:55]} Bb7 {[%emt 0:17:04]} 11. Bd3 {[%emt 0:04:19]} Ne4 {[%emt 0:08:06]} 12. Qe2 {[%emt 0:04:28]} f5 {[%emt 0:02:33]} 13. Ne5 {[%emt 0:07:07]} Bf6 {[%emt 0:03:56]} 14. f4 {[%emt 0:09:08]} Bxe5 {[%emt 0:05:09]} 15. dxe5 {[%emt 0:17:09]} bxc5 {[%emt 0:05:05]} 16. Bxe4 {[%emt 0:02:29]} fxe4 {[%emt 0:00:38]} 17. bxc5 {[%emt 0:02:01]} Ba6 {[%emt 0:03:27]} 18. Qg4 {[%emt 0:01:59]} Qd7 {[%emt 0:06:19]} 19. a4 {[%emt 0:03:30]} Bd3 {[%emt 0:05:05]} 20. Nb5 {[%emt 0:05:16]} Nc6 {[%emt 0:04:12]} 21. Ra3 {[%emt 0:07:07]} a6 {[%emt 0:04:13]} 22. Nd6 {[%emt 0:00:55]} Rab8 {[%emt 0:00:42]} 23. Bc1 {[%emt 0:01:57]} Rb1 {[%emt 0:01:17]} 24. Kd2 {[%emt 0:01:33]} Nd4 {[%emt 0:02:42]} 25. Rxd3 {[%emt 0:02:35]} exd3 {[%emt 0:00:23]} 26. Kxd3 {[%emt 0:00:01]} Qxa4 {[%emt 0:00:30]} 27. Be3 {[%emt 0:03:53]} Qc2+ {[%emt 0:00:20]} 28. Kxd4 {[%emt 0:00:07]} Rb4+ {[%emt 0:00:02]} 29. Nc4 {[%emt 0:00:11]} Qxc4# {[%emt 0:00:02]} 0-1

[Event "FIDE WCCC U8 2018"]
[Site "Santiago de Compostela"]
[Date "2018.11.11"]
[Round "7"]
[White "Nurgaliyev, Sauat"]
[Black "Azadaliyev, Jahandar"]
[Result "1/2-1/2"]
[ECO "B13"]
[WhiteElo "1764"]
[BlackElo "1674"]
[Annotator "NA RC"]
[PlyCount "210"]
[EventDate "2018.11.04"]
[EventType "swiss"]
[EventCountry "ESP"]
[SourceTitle "playchess.com"]
[Source "ChessBase"]
[SourceQuality "1"]
[TimeControl "40/5400+30:1800+30"]

1. e4 {[%emt 0:00:00]} c6 {[%emt 0:00:00]} 2. d4 {[%emt 0:00:00]} d5 {[%emt 0:00:00]} 3. exd5 {[%emt 0:00:15]} cxd5 {[%emt 0:00:18]} 4. Bd3 {[%emt 0:00:44]} Nc6 {[%emt 0:00:44]} 5. c3 {[%emt 0:00:35]} Nf6 {[%emt 0:00:41]} 6. Bf4 {[%emt 0:02:41]} Bg4 {[%emt 0:02:09]} 7. Qb3 {[%emt 0:01:24]} Na5 {[%emt 0:01:48]} 8. Qa4+ Bd7 {[%emt 0:00:22]} 9. Qc2 {[%emt 0:03:02]} e6 {[%emt 0:01:00]} 10. Nf3 {[%emt 0:01:21]} Qb6 {[%emt 0:02:52]} 11. a4 {[%emt 0:03:07]} Rc8 {[%emt 0:01:14]} 12. O-O {[%emt 0:04:21]} Be7 {[%emt 0:08:06]} 13. Nbd2 {[%emt 0:05:31]} O-O {[%emt 0:04:49]} 14. Ne5 {[%emt 0:04:22]} h6 {[%emt 0:04:58]} 15. Rfe1 {[%emt 0:14:24]} Rfd8 {[%emt 0:11:55]} 16. Re3 {[%emt 0:05:52]} Be8 {[%emt 0:12:00]} 17. b4 {[%emt 0:16:28]} Bxb4 {[%emt 0:01:50]} 18. Rb1 {[%emt 0:01:42]} Rxc3 {[%emt 0:00:09]} 19. Bh7+ {[%emt 0:02:45]} Nxh7 {[%emt 0:00:21]} 20. Rxc3 {[%emt 0:00:27]} Qxd4 {[%emt 0:00:13]} 21. Rf3 {[%emt 0:00:32]} Bxd2 {[%emt 0:04:32]} 22. Qxd2 {[%emt 0:02:32]} Qxd2 23. Bxd2 Nc6 {[%emt 0:00:31]} 24. Nd3 {[%emt 0:04:43]} b6 {[%emt 0:00:53]} 25. Re3 {[%emt 0:03:54]} Nf6 {[%emt 0:01:23]} 26. f3 {[%emt 0:01:42]} Kf8 {[%emt 0:00:37]} 27. Ree1 {[%emt 0:02:55]} Ke7 {[%emt 0:01:16]} 28. Kf2 {[%emt 0:03:18]} Nd7 {[%emt 0:01:48]} 29. Rbc1 {[%emt 0:01:55]} Kd6 {[%emt 0:00:41]} 30. Bc3 {[%emt 0:02:52]} f6 {[%emt 0:00:45]} 31. Bb2 {[%emt 0:01:01]} e5 {[%emt 0:01:34]} 32. Ba3+ {[%emt 0:00:01]} Kc7 {[%emt 0:02:35]} 33. Be7 {[%emt 0:02:51]} Rc8 {[%emt 0:17:32]} 34. Nb4 {[%emt 0:03:35]} Ndb8 {[%emt 0:00:17]} 35. Nxd5+ {[%emt 0:01:52]} Kb7 {[%emt 0:00:23]} 36. Red1 {[%emt 0:00:57]} Bf7 {[%emt 0:00:46]} 37. Ba3 {[%emt 0:00:52]} Rd8 {[%emt 0:00:47]} 38. Ne3 {[%emt 0:00:49]} Bb3 {[%emt 0:01:21]} 39. Rxd8 {[%emt 0:00:30]} Nxd8 {[%emt 0:00:10]} 40. Nf5 {[%emt 0:00:00]} Bxa4 {[%emt 0:00:00]} 41. Nxg7 {[%emt 0:00:38]} Nbc6 {[%emt 0:01:22]} 42. Nf5 {[%emt 0:00:59]} b5 {[%emt 0:00:26]} 43. Nxh6 {[%emt 0:00:32]} b4 {[%emt 0:00:22]} 44. Bb2 {[%emt 0:00:22]} Ne6 {[%emt 0:01:05]} 45. g3 {[%emt 0:01:09]} b3 {[%emt 0:00:34]} 46. Ra1 {[%emt 0:00:51]} Nc5 {[%emt 0:00:26]} 47. Ke2 {[%emt 0:02:08]} Bb5+ {[%emt 0:00:24]} 48. Kd2 {[%emt 0:00:43]} a5 {[%emt 0:01:45]} 49. Nf5 {[%emt 0:02:41]} Na4 {[%emt 0:03:55]} 50. Rb1 {[%emt 0:01:29]} Nb4 {[%emt 0:02:49]} 51. Nd6+ {[%emt 0:01:28]} Kc6 {[%emt 0:00:12]} 52. Nxb5 {[%emt 0:00:47]} Kxb5 {[%emt 0:00:01]} 53. Ba3 {[%emt 0:01:02]} Nc5 {[%emt 0:00:12]} 54. h4 {[%emt 0:01:23]} e4 {[%emt 0:01:40]} 55. h5 {[%emt 0:02:51]} exf3 {[%emt 0:00:50]} 56. h6 {[%emt 0:00:26]} Ne4+ {[%emt 0:00:22]} 57. Ke3 {[%emt 0:02:54]} Ng5 {[%emt 0:00:11]} 58. Rxb3 {[%emt 0:04:36]} Kc4 {[%emt 0:05:55]} 59. Bxb4 {[%emt 0:05:44]} Kxb3 {[%emt 0:00:45]} 60. Bxa5 {[%emt 0:00:02]} Kc4 {[%emt 0:00:13]} 61. Bd8 {[%emt 0:00:59]} Nh7 {[%emt 0:00:16]} 62. Kxf3 {[%emt 0:00:54]} Kd5 {[%emt 0:00:08]} 63. Kg4 {[%emt 0:01:37]} Ke6 64. Ba5 {[%emt 0:03:29]} Nf8 {[%emt 0:00:59]} 65. Bb4 {[%emt 0:01:12]} Nh7 {[%emt 0:00:13]} 66. Ba3 {[%emt 0:01:27]} Ng5 {[%emt 0:00:30]} 67. Bc1 {[%emt 0:02:02]} Nh7 {[%emt 0:00:05]} 68. Ba3 {[%emt 0:01:10]} Ng5 {[%emt 0:00:07]} 69. Bf8 {[%emt 0:01:09]} Nh7 {[%emt 0:00:08]} 70. Bg7 {[%emt 0:00:22]} Ng5 {[%emt 0:00:11]} 71. Bf8 {[%emt 0:01:17]} Nh7 {[%emt 0:00:07]} 72. Ba3 {[%emt 0:00:31]} Ng5 {[%emt 0:00:06]} 73. Bb2 {[%emt 0:00:23]} Nh7 {[%emt 0:00:07]} 74. Bc3 {[%emt 0:01:06]} Ng5 {[%emt 0:00:14]} 75. Bd2 {[%emt 0:00:19]} Nh7 {[%emt 0:00:07]} 76. Bc1 {[%emt 0:00:20]} Nf8 {[%emt 0:00:06]} 77. Kf4 {[%emt 0:00:47]} Nh7 {[%emt 0:00:05]} 78. Ke4 {[%emt 0:00:27]} Nf8 {[%emt 0:01:26]} 79. g4 {[%emt 0:00:25]} Nh7 {[%emt 0:00:09]} 80. Kd4 {[%emt 0:00:30]} Nf8 {[%emt 0:00:38]} 81. Ke4 {[%emt 0:00:38]} Nh7 {[%emt 0:00:06]} 82. Ba3 {[%emt 0:00:36]} Ng5+ {[%emt 0:00:07]} 83. Kf4 {[%emt 0:00:09]} Nh7 {[%emt 0:00:05]} 84. Bb4 {[%emt 0:00:22]} Ng5 {[%emt 0:00:09]} 85. Ba5 {[%emt 0:00:40]} Nh7 {[%emt 0:00:12]} 86. Bd2 {[%emt 0:00:56]} Ng5 {[%emt 0:00:08]} 87. Be3 {[%emt 0:00:23]} Nh7 {[%emt 0:00:06]} 88. Kg3 {[%emt 0:00:34]} Kf7 {[%emt 0:00:08]} 89. Kh4 {[%emt 0:00:27]} Kg6 {[%emt 0:00:05]} 90. Kg3 {[%emt 0:00:12]} Kf7 {[%emt 0:00:06]} 91. Bd2 {[%emt 0:00:24]} Ke6 {[%emt 0:00:21]} 92. Kh4 {[%emt 0:00:23]} Kf7 {[%emt 0:00:05]} 93. Kh5 {[%emt 0:00:14]} Nf8 {[%emt 0:00:06]} 94. Bb4 {[%emt 0:00:49]} Nh7 {[%emt 0:00:05]} 95. Bd2 {[%emt 0:00:50]} Nf8 {[%emt 0:00:10]} 96. g5 {[%emt 0:00:30]} fxg5 {[%emt 0:00:49]} 97. Kxg5 {[%emt 0:00:16]} Nh7+ {[%emt 0:00:07]} 98. Kf5 {[%emt 0:00:12]} Nf6 {[%emt 0:00:12]} 99. Bc3 {[%emt 0:00:23]} Nh7 {[%emt 0:00:07]} 100. Bg7 {[%emt 0:00:46]} Nf8 {[%emt 0:00:07]} 101. Ke5 {[%emt 0:00:48]} Nd7+ {[%emt 0:00:53]} 102. Kd6 {[%emt 0:00:36]} Nf6 {[%emt 0:00:06]} 103. Bh8 {[%emt 0:00:41]} Ng4 {[%emt 0:00:16]} 104. h7 {[%emt 0:00:35]} Kg6 {[%emt 0:00:06]} 105. Ke6 {[%emt 0:00:04]} Kxh7 {[%emt 0:00:06]} 1/2-1/2

[Event "FIDE WCCC U8 2018"]
[Site "Santiago de Compostela"]
[Date "2018.11.11"]
[Round "7"]
[White "Schnaider, Ilan"]
[Black "Shashindhar, Kumar R"]
[Result "1-0"]
[ECO "B72"]
[WhiteElo "1723"]
[BlackElo "1086"]
[Annotator "NA RC"]
[PlyCount "79"]
[EventDate "2018.11.04"]
[EventType "swiss"]
[EventCountry "ESP"]
[SourceTitle "playchess.com"]
[Source "ChessBase"]
[SourceQuality "1"]
[TimeControl "40/5400+30:1800+30"]

1. e4 {[%emt 0:00:00]} c5 {[%emt 0:00:00]} 2. Nf3 {[%emt 0:00:00]} d6 {[%emt 0:00:20]} 3. d4 {[%emt 0:00:00]} cxd4 {[%emt 0:00:48]} 4. Nxd4 {[%emt 0:00:19]} Nf6 {[%emt 0:00:35]} 5. Nc3 {[%emt 0:00:17]} g6 {[%emt 0:00:36]} 6. Be3 {[%emt 0:00:13]} Bg7 {[%emt 0:00:36]} 7. g3 {[%emt 0:01:01]} O-O {[%emt 0:00:34]} 8. Bg2 {[%emt 0:00:27]} Nc6 {[%emt 0:00:55]} 9. O-O {[%emt 0:00:23]} Bd7 {[%emt 0:00:29]} 10. h3 {[%emt 0:00:36]} Qc8 {[%emt 0:00:50]} 11. Kh2 {[%emt 0:00:25]} Na5 {[%emt 0:02:20]} 12. f4 {[%emt 0:05:40]} Rb8 {[%emt 0:01:38]} 13. Qe2 {[%emt 0:12:16]} Nc4 {[%emt 0:03:27]} 14. Nd1 {[%emt 0:02:05]} Nxe3 {[%emt 0:04:28]} 15. Nxe3 {[%emt 0:01:32]} Nxe4 {[%emt 0:00:56]} 16. Nd5 {[%emt 0:00:30]} Qd8 {[%emt 0:08:59]} 17. Qxe4 {[%emt 0:00:22]} e6 18. Nc3 {[%emt 0:00:13]} d5 {[%emt 0:02:12]} 19. Qe3 {[%emt 0:00:21]} Qb6 {[%emt 0:00:46]} 20. Nce2 {[%emt 0:00:57]} Qxb2 {[%emt 0:00:51]} 21. Rfb1 {[%emt 0:00:18]} Bxd4 {[%emt 0:00:59]} 22. Nxd4 {[%emt 0:00:09]} Qxa1 23. Rxa1 b6 {[%emt 0:01:52]} 24. Bf1 {[%emt 0:00:57]} b5 {[%emt 0:00:20]} 25. Rb1 {[%emt 0:00:07]} a6 {[%emt 0:00:04]} 26. a4 {[%emt 0:00:20]} b4 {[%emt 0:00:47]} 27. Bxa6 {[%emt 0:00:17]} Bxa4 {[%emt 0:00:18]} 28. Qd3 {[%emt 0:00:21]} Rb6 {[%emt 0:01:01]} 29. Bb5 {[%emt 0:00:14]} Bxb5 {[%emt 0:00:19]} 30. Nxb5 {[%emt 0:00:05]} Rfb8 {[%emt 0:00:26]} 31. Rxb4 {[%emt 0:00:11]} Kg7 {[%emt 0:00:39]} 32. c3 {[%emt 0:00:16]} h5 {[%emt 0:00:12]} 33. Nd6 {[%emt 0:00:15]} Rxb4 {[%emt 0:00:16]} 34. cxb4 {[%emt 0:00:07]} Rxb4 {[%emt 0:00:05]} 35. Qc3+ {[%emt 0:02:23]} d4 {[%emt 0:00:14]} 36. Qxb4 {[%emt 0:00:06]} d3 {[%emt 0:00:07]} 37. Qd4+ {[%emt 0:00:05]} f6 {[%emt 0:00:18]} 38. Ne8+ {[%emt 0:00:08]} Kh6 {[%emt 0:00:10]} 39. Qxf6 {[%emt 0:00:15]} h4 {[%emt 0:00:36]} 40. Qxh4# {[%emt 0:00:12]} 1-0